fUST/lending_fUST_20240722
["ID","MTS","AMOUNT","RATE_DAILY","PERIOD"]
[332875692,1721611851099,-337.16,0.0001452,2]
[332875693,1721611851108,-500.0,0.0001452,2]
[332875694,1721611851118,-500.0,0.0001452,2]
[332875695,1721611851127,-624.09,0.0001452,2]
[332875696,1721611851137,-369.41,0.0001452,2]
[332875697,1721611851147,-271.46,0.0001452,2]
[332875698,1721611851156,-500.0,0.0001452,2]
[332875699,1721611851166,-500.0,0.0001452,2]
[332875700,1721611851175,-500.0,0.0001452,2]
[332875701,1721611851185,-500.0,0.0001452,2]
[332875702,1721611851196,-539.77,0.0001452,2]
[332875703,1721611851206,-500.0,0.0001452,2]
[332875704,1721611851215,-328.22,0.0001452,2]
[332875705,1721611851225,-500.0,0.0001452,2]
[332875706,1721611851234,-500.0,0.0001452,2]
[332875707,1721611851244,-500.0,0.0001452,2]
[332875708,1721611851254,-500.0,0.0001452,2]
[332875709,1721611851264,-500.0,0.0001452,2]
[332875710,1721611851274,-288.58,0.0001452,2]
[332875711,1721611851285,-500.0,0.0001452,2]
[332875712,1721611851295,-500.0,0.0001452,2]
[332875713,1721611851304,-500.0,0.0001452,2]
[332875714,1721611851314,-500.0,0.0001452,2]
[332875715,1721611851323,-500.0,0.0001452,2]
[332875716,1721611851334,-500.0,0.0001452,2]
[332875717,1721611851344,-405.06363203,0.0001452,2]
[332875718,1721611851354,-275.12,0.0001452,2]
[332875719,1721611851363,-346.4689517,0.0001452,2]
[332875720,1721611851372,-500.0,0.0001452,2]
[332875721,1721611851384,-500.0,0.0001452,2]
[332875722,1721611851393,-500.0,0.0001452,2]
[332875723,1721611851403,-500.0,0.0001452,2]
[332875724,1721611851412,-510.71,0.0001452,2]
[332875725,1721611851422,-206.08,0.0001452,2]
[332875726,1721611851431,-500.0,0.0001452,2]
[332875727,1721611851442,-500.0,0.0001452,2]
[332875728,1721611851451,-426.86,0.0001452,2]
[332875729,1721611851460,-500.0,0.0001452,2]
[332875730,1721611851471,-500.0,0.0001452,2]
[332875731,1721611851483,-500.0,0.0001452,2]
[332875732,1721611851493,-297.91,0.0001452,2]
[332875733,1721611851503,-500.0,0.0001452,2]
[332875734,1721611851512,-336.26,0.0001452,2]
[332875735,1721611851522,-500.0,0.0001452,2]
[332875736,1721611851533,-165.28,0.0001452,2]
[332875737,1721611851543,-500.0,0.0001452,2]
[332875738,1721611851552,-151.0,0.0001452,2]
[332875739,1721611851564,-500.0,0.0001452,2]
[332875740,1721611851574,-151.0,0.0001452,2]
[332875741,1721611851585,-151.0,0.0001452,2]
[332875742,1721611851597,-217.51,0.0001452,2]
[332875743,1721611851608,-151.0,0.0001452,2]
[332875744,1721611851617,-500.0,0.0001452,2]
[332875745,1721611851627,-151.0,0.0001452,2]
[332875746,1721611851636,-151.0,0.0001452,2]
[332875747,1721611851645,-1151.68356999,0.0001452,2]
[332875748,1721611851655,-451.93,0.00014607,2]
[332875749,1721611851664,-366.61,0.00014607,2]
[332875750,1721611851673,-473.72,0.00014607,2]
[332875751,1721611851729,-500.0,0.00014607,2]
[332875752,1721611851738,-151.0,0.00014607,2]
[332875753,1721611851748,-151.0,0.00014607,2]
[332875754,1721611851758,-438.202982,0.00014607,2]
[332875755,1721611851768,-438.202982,0.00014607,2]
[332875756,1721611851778,-167.0,0.0001461,2]
[332875757,1721611851788,-755.02833614,0.00014685,2]
[332875758,1721611851798,-397.18059012,0.0001469,2]
[332875759,1721611851809,-791.58403018,0.0001469,2]
[332875760,1721611851819,-154.77557542,0.0001469,2]
[332875761,1721611851830,-526.81626492,0.0001469,2]
[332875762,1721611851841,-1465.2,0.00014794,2]
[332875763,1721611851852,-527.23,0.00014794,2]
[332875764,1721611851862,-500.0,0.00014794,2]
[332875765,1721611851876,-590.47,0.00014794,2]
[332875766,1721611851886,-1178.55,0.00014794,2]
[332875767,1721611851896,-564.77,0.00014794,2]
[332875768,1721611851906,-1672.06,0.00014794,2]
[332875769,1721611851918,-500.0,0.00014794,2]
[332875770,1721611851928,-500.0,0.00014794,2]
[332875771,1721611851939,-320.34,0.00014794,2]
[332875772,1721611851949,-500.0,0.00014794,2]
[332875773,1721611851959,-500.0,0.00014794,2]
[332875774,1721611851969,-500.0,0.00014794,2]
[332875775,1721611851979,-500.0,0.00014794,2]
[332875776,1721611851990,-500.0,0.00014794,2]
[332875777,1721611852002,-500.0,0.00014794,2]
[332875778,1721611852011,-500.0,0.00014794,2]
[332875779,1721611852021,-500.0,0.00014794,2]
[332875780,1721611852030,-500.0,0.00014794,2]
[332875781,1721611852039,-316.07847082,0.00014794,2]
[332875782,1721611852049,-500.0,0.00014794,2]
[332875783,1721611852058,-376.37,0.00014794,2]
[332875784,1721611852066,-195.82,0.00014794,2]
[332875785,1721611852076,-500.0,0.00014794,2]
[332875786,1721611852086,-230.56,0.00014794,2]
[332875787,1721611852096,-500.0,0.00014794,2]
[332875788,1721611852107,-223.24,0.00014794,2]
[332875789,1721611852117,-571.89,0.00014794,2]
[332875790,1721611852128,-500.0,0.00014794,2]
[332875791,1721611852138,-500.0,0.00014794,2]
[332875792,1721611852147,-205.964862,0.00014794,2]
[332875793,1721611852156,-151.0,0.00014794,2]
[332875794,1721611852167,-151.0,0.00014794,2]
[332875795,1721611852178,-165.0,0.00014795,2]
[332875796,1721611852188,-306.83,0.00014881,2]
[332875797,1721611852199,-500.0,0.00014889,2]
[332875798,1721611852209,-500.0,0.0001489,7]
[332875799,1721611852219,-500.0,0.0001489,7]
[332875800,1721611852228,-500.0,0.0001489,7]
[332875801,1721611852239,-500.0,0.0001489,7]
[332875802,1721611852249,-228.43,0.0001489,7]
[332875803,1721611852259,-2426.60736083,0.00015,2]
[332875804,1721611852268,-2844.20261952,0.00015,2]
[332875805,1721611852278,-1107.68245539,0.00015,2]
[332875806,1721611852287,-951.09536829,0.00015,2]
[332875807,1721611852297,-1044.15123109,0.00015,2]
[332875808,1721611852306,-151.0,0.00015,2]
[332875809,1721611852315,-151.0,0.00015,2]
[332875810,1721611852326,-293.36305,0.00015,2]
[332875811,1721611852336,-1149.7373409,0.00015027,2]
[332875812,1721611852346,-527.23,0.00015068,2]
[332875813,1721611852357,-500.0,0.00015068,2]
[332875814,1721611852367,-1178.55,0.00015068,2]
[332875815,1721611852377,-1672.06,0.00015068,2]
[332875816,1721611852388,-500.0,0.00015068,2]
[332875817,1721611852397,-541.94,0.00015068,2]
[332875818,1721611852407,-500.0,0.00015068,2]
[332875819,1721611852416,-569.31,0.00015068,2]
[332875820,1721611852427,-500.0,0.00015068,2]
[332875821,1721611852437,-355.63183445,0.00015068,2]
[332875822,1721611852448,-500.0,0.00015068,2]
[332875823,1721611852460,-506.04,0.00015068,2]
[332875824,1721611852469,-500.0,0.00015068,2]
[332875825,1721611852479,-500.0,0.00015068,2]
[332875826,1721611852489,-500.0,0.00015068,2]
[332875827,1721611852498,-609.0,0.00015068,2]
[332875828,1721611852508,-500.0,0.00015068,2]
[332875829,1721611852517,-500.0,0.00015068,2]
[332875830,1721611852527,-527.23,0.00015342,2]
[332875831,1721611852536,-500.0,0.00015342,2]
[332875832,1721611852546,-1178.55,0.00015342,2]
[332875833,1721611852555,-1672.06,0.00015342,2]
[332875834,1721611852564,-500.0,0.00015342,2]
[332875835,1721611852574,-500.0,0.00015342,2]
[332875836,1721611852583,-269.46,0.00015342,2]
[332875837,1721611852592,-500.0,0.00015342,2]
[332875838,1721611852601,-533.74,0.00015342,2]
[332875839,1721611852611,-500.0,0.00015342,2]
[332875840,1721611852620,-233.63,0.00015342,2]
[332875841,1721611852630,-500.0,0.00015342,2]
[332875842,1721611852640,-331.13,0.00015342,2]
[332875843,1721611852649,-1151.68356999,0.00015443,2]
[332875844,1721611852658,-1000.0,0.000155,2]
[332875845,1721611852668,-2000.0,0.00015595,2]
[332875846,1721611852678,-500.0,0.00015603,2]
[332875847,1721611852687,-2000.0,0.00015604,2]
[332875848,1721611852698,-527.23,0.00015616,2]
[332875849,1721611852707,-500.0,0.00015616,2]
[332875850,1721611852717,-1178.55,0.00015616,2]
[332875851,1721611852727,-1672.06,0.00015616,2]
[332875852,1721611852737,-189.8,0.00015616,2]
[332875853,1721611852746,-500.0,0.00015616,2]
[332875854,1721611852756,-500.0,0.00015616,2]
[332875855,1721611852765,-500.0,0.00015616,2]
[332875856,1721611852775,-289.65613207,0.00015616,2]
[332875857,1721611852784,-153.0,0.00015616,2]
[332875858,1721611852794,-153.0,0.00015616,2]
[332875859,1721611852803,-153.0,0.00015616,2]
[332875860,1721611852812,-153.0,0.00015616,2]
[332875861,1721611852822,-584.671337,0.000157,6]
[332875862,1721611852831,-500.0,0.00015707,2]
[332875863,1721611852840,-500.0,0.00015707,2]
[332875864,1721611852850,-500.0,0.00015707,2]
[332875865,1721611852859,-500.0,0.00015707,2]
[332875866,1721611852869,-500.0,0.00015707,2]
[332875867,1721611852883,-500.0,0.00015707,2]
[332875868,1721611852892,-500.0,0.00015707,2]
[332875869,1721611852902,-307.7,0.00015707,2]
[332875870,1721611852911,-500.72751431,0.00015707,2]
[332875871,1721611852921,-80608.59996532,0.00015708,2]
[332875872,1721611852931,-33182.75344673,0.00015708,2]
[332875873,1721611852941,-20353.50557941,0.00015708,2]
[332875874,1721611852952,-3820.43414536,0.00015708,2]
[332875875,1721611852963,-13431.04307036,0.00015708,2]
[332875876,1721611852972,-10582.97822995,0.00015708,2]
[332875877,1721611852982,-1161.54143485,0.00015708,2]
[332875878,1721611852991,-12625.74466986,0.00015708,2]
[332875879,1721611853001,-10079.46404801,0.00015708,2]
[332875880,1721611853010,-2084.84338678,0.00015708,2]
[332875881,1721611853019,-6517.24430292,0.00015708,2]
[332875883,1721612073245,1139.0,0.00025,120]
[332875906,1721613032137,-663.51231387,9.999e-05,2]
[332875907,1721613032148,-154.76012181,9.999e-05,2]
[332875908,1721613032159,-154.76012181,9.999e-05,2]
[332875909,1721613032170,-209.63850314,9.999e-05,2]
[332875911,1721613032181,-941.58882029,9.999e-05,2]
[332875912,1721613032191,-193.96449301,9.999e-05,2]
[332875914,1721613032201,-597.84181907,0.00012671,2]
[332875917,1721613032215,-258.18004786,0.00012671,2]
[332875919,1721613032229,-4685.22917139,0.00012671,2]
[332875935,1721613038100,-19358.74896168,0.00012671,2]
[332875936,1721613038111,-3702.5288801,0.00012772,2]
[332875937,1721613038120,-1037.1729179,0.00013598,2]
[332875938,1721613038131,-2373.93949033,0.00013598,2]
[332875939,1721613038141,-425746.995842,0.00013688,2]
[332875940,1721613038150,-505.85316634,0.00013698,2]
[332875941,1721613038159,-511.72165848,0.00013698,2]
[332875942,1721613038169,-506.74394202,0.00013698,2]
[332875943,1721613038179,-500.0,0.00013698,2]
[332875945,1721613038189,-500.0,0.00013698,2]
[332875947,1721613038198,-504.75716021,0.00013698,2]
[332875949,1721613038210,-500.0,0.00013698,2]
[332875951,1721613038219,-500.0,0.00013698,2]
[332875952,1721613038229,-500.0,0.00013698,2]
[332875954,1721613038244,-500.0,0.00013698,2]
[332875955,1721613038255,-500.0,0.00013698,2]
[332875956,1721613038265,-500.0,0.00013698,2]
[332875957,1721613038275,-504.84380992,0.00013698,2]
[332875958,1721613038287,-500.0,0.00013698,2]
[332875959,1721613038296,-500.0,0.00013698,2]
[332875960,1721613038306,-501.99577457,0.00013698,2]
[332875961,1721613038318,-625.84514018,0.00013698,2]
[332875962,1721613038327,-506.10339969,0.00013698,2]
[332875963,1721613038337,-188.34249442,0.00013698,2]
[332875964,1721613038347,-500.0,0.00013698,2]
[332875965,1721613038356,-500.0,0.00013698,2]
[332875966,1721613038366,-500.0,0.00013698,2]
[332875967,1721613038375,-591.8420593,0.00013698,2]
[332875968,1721613038384,-233.62941123,0.00013698,2]
[332875969,1721613038579,-500.0,0.00013698,2]
[332875970,1721613038589,-916.5,0.00013698,2]
[332875971,1721613038599,-500.0,0.00013698,2]
[332875972,1721613038608,-500.0,0.00013698,2]
[332875973,1721613038617,-500.0,0.00013698,2]
[332875974,1721613038626,-500.0,0.00013698,2]
[332875975,1721613038635,-500.0,0.00013698,2]
[332875976,1721613038645,-374.15193267,0.00013698,2]
[332875977,1721613038654,-500.0,0.00013698,2]
[332875978,1721613038663,-500.0,0.00013698,2]
[332875979,1721613038672,-508.59312937,0.00013698,2]
[332875980,1721613038681,-500.0,0.00013698,2]
[332875981,1721613038690,-558.95291403,0.00013698,2]
[332875982,1721613038699,-504.31067322,0.00013698,2]
[332875983,1721613038708,-500.0,0.00013698,2]
[332875984,1721613038717,-511.14918565,0.00013698,2]
[332875985,1721613038726,-574.99468552,0.00013698,2]
[332875986,1721613038736,-628.31919814,0.00013698,2]
[332875987,1721613038744,-500.0,0.00013698,2]
[332875988,1721613038755,-641.92255381,0.00013698,2]
[332875989,1721613038764,-637.9926678,0.00013698,2]
[332875990,1721613038773,-503.32530299,0.00013698,2]
[332875991,1721613038783,-505.74011897,0.00013698,2]
[332875992,1721613038792,-500.0,0.00013698,2]
[332875993,1721613038801,-562.34093749,0.00013698,2]
[332875994,1721613038810,-1346.26,0.00013698,2]
[332875995,1721613038819,-202.55632502,0.00013698,2]
[332875996,1721613038828,-500.0,0.00013698,2]
[332875997,1721613038837,-555.50974683,0.00013698,2]
[332875998,1721613038847,-349.1682991,0.00013698,2]
[332875999,1721613038856,-500.0,0.00013698,2]
[332876000,1721613038865,-500.0,0.00013698,2]
[332876001,1721613038874,-510.31316744,0.00013698,2]
[332876002,1721613038884,-337.29257704,0.00013698,2]
[332876003,1721613038893,-500.0,0.00013698,2]
[332876004,1721613038902,-500.0,0.00013698,2]
[332876005,1721613038911,-514.18858457,0.00013698,2]
[332876006,1721613038921,-416.24009137,0.00013698,2]
[332876007,1721613038930,-481.93492107,0.00013698,2]
[332876008,1721613038939,-512.43587554,0.00013698,2]
[332876009,1721613038948,-506.70198456,0.00013698,2]
[332876010,1721613038957,-500.0,0.00013698,2]
[332876011,1721613038966,-500.0,0.00013698,2]
[332876012,1721613038975,-500.0,0.00013698,2]
[332876013,1721613038984,-504.28377671,0.00013698,2]
[332876014,1721613038994,-357.0206219,0.00013698,2]
[332876015,1721613039003,-857.38,0.00013698,2]
[332876016,1721613039013,-506.95722412,0.00013698,2]
[332876017,1721613039022,-500.0,0.00013698,2]
[332876018,1721613039031,-500.0,0.00013698,2]
[332876019,1721613039040,-500.0,0.00013698,2]
[332876020,1721613039049,-500.0,0.00013698,2]
[332876021,1721613039058,-500.0,0.00013698,2]
[332876022,1721613039067,-500.0,0.00013698,2]
[332876023,1721613039075,-500.0,0.00013698,2]
[332876024,1721613039085,-500.0,0.00013698,2]
[332876025,1721613039093,-500.0,0.00013698,2]
[332876026,1721613039103,-500.0,0.00013698,2]
[332876027,1721613039115,-586.23612622,0.00013698,2]
[332876028,1721613039123,-500.0,0.00013698,2]
[332876029,1721613039133,-500.0,0.00013698,2]
[332876030,1721613039142,-500.0,0.00013698,2]
[332876031,1721613039152,-500.0,0.00013698,2]
[332876032,1721613039161,-500.0,0.00013698,2]
[332876033,1721613039171,-500.0,0.00013698,2]
[332876034,1721613039181,-500.0,0.00013698,2]
[332876035,1721613039190,-500.0,0.00013698,2]
[332876036,1721613039199,-500.0,0.00013698,2]
[332876037,1721613039208,-500.0,0.00013698,2]
[332876038,1721613039218,-500.0,0.00013698,2]
[332876039,1721613039227,-500.0,0.00013698,2]
[332876040,1721613039240,-500.0,0.00013698,2]
[332876041,1721613039250,-321.58043653,0.00013698,2]
[332876042,1721613039260,-500.0,0.00013698,2]
[332876043,1721613039273,-412.15783446,0.00013698,2]
[332876044,1721613039283,-500.0,0.00013698,2]
[332876045,1721613039295,-511.04757458,0.00013698,2]
[332876046,1721613039304,-500.0,0.00013698,2]
[332876047,1721613039315,-438.68956217,0.00013698,2]
[332876048,1721613039325,-500.0,0.00013698,2]
[332876049,1721613039334,-248.33983644,0.00013698,2]
[332876050,1721613039343,-500.0,0.00013698,2]
[332876051,1721613039354,-500.0,0.00013698,2]
[332876052,1721613039363,-500.0,0.00013698,2]
[332876053,1721613039372,-500.0,0.00013698,2]
[332876054,1721613039382,-500.0,0.00013698,2]
[332876055,1721613039391,-500.0,0.00013698,2]
[332876056,1721613039400,-500.0,0.00013698,2]
[332876057,1721613039409,-505.24936389,0.00013698,2]
[332876058,1721613039418,-500.0,0.00013698,2]
[332876059,1721613039427,-500.0,0.00013698,2]
[332876060,1721613039437,-307.7,0.00013698,2]
[332876061,1721613039447,-500.0,0.00013698,2]
[332876062,1721613039456,-500.0,0.00013698,2]
[332876063,1721613039465,-507.55453006,0.00013698,2]
[332876064,1721613039474,-500.0,0.00013698,2]
[332876065,1721613039486,-252.27859239,0.00013698,2]
[332876066,1721613039495,-500.0,0.00013698,2]
[332876067,1721613039506,-500.0,0.00013698,2]
[332876068,1721613039515,-510.10518101,0.00013698,2]
[332876069,1721613039525,-500.0,0.00013698,2]
[332876070,1721613039534,-504.2214068,0.00013698,2]
[332876071,1721613039544,-503.66669502,0.00013698,2]
[332876072,1721613039554,-500.0,0.00013698,2]
[332876073,1721613039563,-500.0,0.00013698,2]
[332876074,1721613039573,-500.0,0.00013698,2]
[332876075,1721613039582,-500.0,0.00013698,2]
[332876076,1721613039591,-500.0,0.00013698,2]
[332876077,1721613039600,-500.0,0.00013698,2]
[332876078,1721613039609,-500.0,0.00013698,2]
[332876079,1721613039618,-500.0,0.00013698,2]
[332876080,1721613039627,-500.0,0.00013698,2]
[332876081,1721613039636,-500.0,0.00013698,2]
[332876082,1721613039645,-500.0,0.00013698,2]
[332876083,1721613039654,-500.0,0.00013698,2]
[332876084,1721613039663,-649.40005782,0.00013698,2]
[332876085,1721613039672,-500.0,0.00013698,2]
[332876086,1721613039681,-461.94701501,0.00013698,2]
[332876087,1721613039690,-204.8816853,0.00013698,2]
[332876088,1721613039699,-504.98413447,0.00013698,2]
[332876089,1721613039708,-502.71172316,0.00013698,2]
[332876090,1721613039717,-487.8921371,0.00013698,2]
[332876091,1721613039726,-503.80197866,0.00013698,2]
[332876092,1721613039735,-500.0,0.00013698,2]
[332876093,1721613039744,-505.20031824,0.00013698,2]
[332876094,1721613039753,-500.0,0.00013698,2]
[332876095,1721613039763,-500.0,0.00013698,2]
[332876096,1721613039772,-500.0,0.00013698,2]
[332876098,1721613039781,-637.5102627,0.00013698,2]
[332876100,1721613039790,-500.0,0.00013698,2]
[332876101,1721613039799,-500.0,0.00013698,2]
[332876103,1721613039808,-500.0,0.00013698,2]
[332876105,1721613039817,-500.0,0.00013698,2]
[332876108,1721613039826,-337.49854991,0.00013698,2]
[332876110,1721613039835,-500.0,0.00013698,2]
[332876112,1721613039844,-500.0,0.00013698,2]
[332876113,1721613039853,-500.0,0.00013698,2]
[332876114,1721613039862,-507.63119964,0.00013698,2]
[332876115,1721613039872,-500.88649305,0.00013698,2]
[332876116,1721613039882,-612.57565108,0.00013698,2]
[332876117,1721613039892,-500.0,0.00013698,2]
[332876118,1721613039901,-500.0,0.00013698,2]
[332876119,1721613039910,-501.03580848,0.00013698,2]
[332876120,1721613039919,-500.57129976,0.00013698,2]
[332876121,1721613039929,-500.0,0.00013698,2]
[332876122,1721613039940,-501.30523314,0.00013698,2]
[332876123,1721613039951,-501.16438225,0.00013698,2]
[332876124,1721613039961,-617.99000998,0.00013698,2]
[332876125,1721613039971,-516.25954644,0.00013698,2]
[332876126,1721613039981,-501.89306793,0.00013698,2]
[332876127,1721613039992,-546.60212975,0.00013698,2]
[332876128,1721613040002,-500.0,0.00013698,2]
[332876129,1721613040013,-553.82563815,0.00013698,2]
[332876130,1721613040023,-171.72094386,0.00013698,2]
[332876131,1721613040032,-500.0,0.00013698,2]
[332876132,1721613040043,-500.0,0.00013698,2]
[332876133,1721613040054,-500.0,0.00013698,2]
[332876134,1721613040064,-501.89685801,0.00013698,2]
[332876135,1721613040073,-502.5171662,0.00013698,2]
[332876136,1721613040082,-504.14101277,0.00013698,2]
[332876137,1721613040091,-505.20749612,0.00013698,2]
[332876138,1721613040100,-500.0,0.00013698,2]
[332876139,1721613040110,-506.6641191,0.00013698,2]
[332876140,1721613040120,-500.0,0.00013698,2]
[332876141,1721613040130,-282.81910119,0.00013698,2]
[332876142,1721613040140,-501.26675335,0.00013698,2]
[332876143,1721613040149,-500.0,0.00013698,2]
[332876144,1721613040160,-503.97164233,0.00013698,2]
[332876145,1721613040170,-500.0,0.00013698,2]
[332876146,1721613040179,-634.47584188,0.00013698,2]
[332876147,1721613040190,-500.0,0.00013698,2]
[332876148,1721613040199,-500.0,0.00013698,2]
[332876149,1721613040209,-500.0,0.00013698,2]
[332876150,1721613040219,-504.91223292,0.00013698,2]
[332876151,1721613040229,-500.0,0.00013698,2]
[332876152,1721613040243,-458.76583086,0.00013698,2]
[332876153,1721613040252,-509.79821889,0.00013698,2]
[332876154,1721613040265,-500.0,0.00013698,2]
[332876155,1721613040275,-500.0,0.00013698,2]
[332876156,1721613040287,-590.47,0.00013698,2]
[332876157,1721613040297,-500.0,0.00013698,2]
[332876158,1721613040306,-435.30900579,0.00013698,2]
[332876159,1721613040318,-505.53675013,0.00013698,2]
[332876160,1721613040330,-500.0,0.00013698,2]
[332876161,1721613040339,-508.54086482,0.00013698,2]
[332876162,1721613040349,-500.0,0.00013698,2]
[332876163,1721613040358,-505.45804967,0.00013698,2]
[332876164,1721613040371,-506.05601306,0.00013698,2]
[332876165,1721613040380,-507.91651285,0.00013698,2]
[332876166,1721613040390,-500.0,0.00013698,2]
[332876167,1721613040400,-500.0,0.00013698,2]
[332876168,1721613040409,-505.07116324,0.00013698,2]
[332876169,1721613040418,-500.0,0.00013698,2]
[332876170,1721613040428,-500.0,0.00013698,2]
[332876171,1721613040437,-510.54506903,0.00013698,2]
[332876172,1721613040446,-505.27556251,0.00013698,2]
[332876173,1721613040456,-500.0,0.00013698,2]
[332876174,1721613040465,-500.0,0.00013698,2]
[332876175,1721613040474,-500.0,0.00013698,2]
[332876176,1721613040484,-507.54327837,0.00013698,2]
[332876177,1721613040493,-500.0,0.00013698,2]
[332876178,1721613040503,-500.0,0.00013698,2]
[332876179,1721613040515,-502.70405058,0.00013698,2]
[332876180,1721613040524,-500.0,0.00013698,2]
[332876181,1721613040535,-506.21808794,0.00013698,2]
[332876182,1721613040544,-505.82577236,0.00013698,2]
[332876183,1721613040555,-503.94767207,0.00013698,2]
[332876184,1721613040565,-500.0,0.00013698,2]
[332876185,1721613040576,-500.0,0.00013698,2]
[332876186,1721613040589,-355.08674039,0.00013698,2]
[332876187,1721613040598,-503.45492094,0.00013698,2]
[332876188,1721613040608,-355.2643657,0.00013698,2]
[332876189,1721613040617,-505.59123816,0.00013698,2]
[332876190,1721613040628,-500.0,0.00013698,2]
[332876191,1721613040637,-507.6019975,0.00013698,2]
[332876192,1721613040647,-500.0,0.00013698,2]
[332876193,1721613040657,-504.4189685,0.00013698,2]
[332876194,1721613040667,-505.6860719,0.00013698,2]
[332876195,1721613040678,-501.53612809,0.00013698,2]
[332876196,1721613040688,-505.68234669,0.00013698,2]
[332876197,1721613040697,-500.85060824,0.00013698,2]
[332876198,1721613040708,-502.38733156,0.00013698,2]
[332876199,1721613040718,-504.49073028,0.00013698,2]
[332876201,1721613040727,-503.34543243,0.00013698,2]
[332876203,1721613040737,-504.95529347,0.00013698,2]
[332876204,1721613040747,-640.12938596,0.00013698,2]
[332876206,1721613040760,-561.59196261,0.00013698,2]
[332876207,1721613040770,-502.98153766,0.00013698,2]
[332876208,1721613040779,-500.0,0.00013698,2]
[332876209,1721613040789,-503.26727459,0.00013698,2]
[332876210,1721613040800,-512.10284294,0.00013698,2]
[332876211,1721613040811,-185.50399782,0.00013698,2]
[332876212,1721613040820,-500.0,0.00013698,2]
[332876213,1721613040830,-503.91550482,0.00013698,2]
[332876214,1721613040842,-500.0,0.00013698,2]
[332876215,1721613040854,-500.69871773,0.00013698,2]
[332876216,1721613040865,-504.67128698,0.00013698,2]
[332876217,1721613040875,-502.53001239,0.00013698,2]
[332876218,1721613040885,-580.04180951,0.00013698,2]
[332876219,1721613040896,-503.75770446,0.00013698,2]
[332876220,1721613040905,-588.17083562,0.00013698,2]
[332876221,1721613040914,-500.0,0.00013698,2]
[332876223,1721613040924,-501.23527508,0.00013698,2]
[332876225,1721613040934,-502.24944695,0.00013698,2]
[332876226,1721613040944,-500.0,0.00013698,2]
[332876227,1721613040955,-482.57977665,0.00013698,2]
[332876228,1721613040967,-503.20357734,0.00013698,2]
[332876229,1721613040977,-500.85292706,0.00013698,2]
[332876230,1721613040986,-502.40859459,0.00013698,2]
[332876231,1721613040996,-503.45916695,0.00013698,2]
[332876232,1721613041007,-504.41813431,0.00013698,2]
[332876233,1721613041018,-503.60201009,0.00013698,2]
[332876234,1721613041027,-507.76104437,0.00013698,2]
[332876235,1721613041037,-503.15584268,0.00013698,2]
[332876236,1721613041047,-503.25712638,0.00013698,2]
[332876237,1721613041056,-502.52987234,0.00013698,2]
[332876238,1721613041066,-500.0,0.00013698,2]
[332876239,1721613041076,-500.0,0.00013698,2]
[332876240,1721613041085,-502.42839157,0.00013698,2]
[332876241,1721613041095,-502.43474045,0.00013698,2]
[332876242,1721613041105,-530.62462713,0.00013698,2]
[332876243,1721613041114,-501.29354844,0.00013698,2]
[332876244,1721613041124,-539.86,0.00013698,2]
[332876245,1721613041133,-503.5325501,0.00013698,2]
[332876246,1721613041142,-505.14832369,0.00013698,2]
[332876247,1721613041152,-500.0,0.00013698,2]
[332876248,1721613041162,-500.0,0.00013698,2]
[332876249,1721613041172,-500.0,0.00013698,2]
[332876250,1721613041181,-500.0,0.00013698,2]
[332876251,1721613041190,-224.51156347,0.00013698,2]
[332876252,1721613041199,-500.0,0.00013698,2]